[Event "Titled Tuesday Blitz April 25 Early 2023"]
[White "Weishaeutel, Moritz"]
[Black "Wimalasuriya, Kasun M."]
[WhiteFideId "12967300"]
[BlackFideId "9906789"]
[WhiteElo "2301"]
[BlackElo "2144"]
[Result "1-0"]
[Round "01"]
[TimeControl "180+2"]
[Date "2023.04.25"]
[WhiteClock "0:00:59"]
[BlackClock "0:00:54"]

1. e4 {[%clk 0:02:59]}  c5 {[%clk 0:02:55]} 2. b4 {[%clk 0:02:58]}  cxb4 {[%clk 0:02:52]} 3. a3 {[%clk 0:02:58]}  d5 {[%clk 0:02:46]} 4. exd5 {[%clk 0:02:59]}  Nf6 {[%clk 0:02:45]} 5. axb4 {[%clk 0:02:56]}  Nxd5 {[%clk 0:02:45]} 6. b5 {[%clk 0:02:53]}  e6 {[%clk 0:02:36]} 7. Nf3 {[%clk 0:02:48]}  Be7 {[%clk 0:02:36]} 8. d4 {[%clk 0:02:46]}  O-O {[%clk 0:02:36]} 9. c4 {[%clk 0:02:45]}  Nb6 {[%clk 0:02:24]} 10. Bd3 {[%clk 0:02:45]}  Bf6 {[%clk 0:02:23]} 11. h4 {[%clk 0:02:40]}  g6 {[%clk 0:02:22]} 12. Bg5 {[%clk 0:02:06]}  N8d7 {[%clk 0:02:17]} 13. Qd2 {[%clk 0:02:02]}  a6 {[%clk 0:02:14]} 14. bxa6 {[%clk 0:01:55]}  Rxa6 {[%clk 0:02:11]} 15. Rxa6 {[%clk 0:01:55]}  bxa6 {[%clk 0:02:11]} 16. Qf4 {[%clk 0:01:48]}  Bb7 {[%clk 0:02:10]} 17. Nbd2 {[%clk 0:01:45]}  Re8 {[%clk 0:02:06]} 18. Ne5 {[%clk 0:01:32]}  Nxe5 {[%clk 0:01:43]} 19. dxe5 {[%clk 0:01:15]}  Bxg5 {[%clk 0:01:39]} 20. hxg5 {[%clk 0:01:15]}  Qxd3 {[%clk 0:01:38]} 21. Rxh7 {[%clk 0:01:16]}  Qf5 {[%clk 0:01:12]} 22. Qh2 {[%clk 0:01:16]}  Kf8 {[%clk 0:01:10]} 23. Rh8+ {[%clk 0:00:58]}  Ke7 {[%clk 0:01:08]} 24. Rxe8+ {[%clk 0:00:59]}  Kxe8 {[%clk 0:01:05]} 25. Qh8+ {[%clk 0:01:00]}  Kd7 {[%clk 0:01:00]} 26. Qb8 {[%clk 0:01:01]}  Kc6 {[%clk 0:00:54]} 27. Qd6# {[%clk 0:00:59]} 1-0


[Site "https://www.chess.com"]

[Event "Titled Tuesday Blitz April 25 Early 2023"]
[White "Hartikainen, Jarmo"]
[Black "Bosnjak, Petar"]
[WhiteFideId "503134"]
[BlackFideId "14532581"]
[WhiteElo "2138"]
[BlackElo "2227"]
[Result "1-0"]
[Round "01"]
[TimeControl "180+2"]
[Date "2023.04.25"]
[WhiteClock "0:00:01"]
[BlackClock "0:01:12"]

1. e4 {[%clk 0:02:58]}  c6 {[%clk 0:02:55]} 2. d4 {[%clk 0:02:57]}  d5 {[%clk 0:02:55]} 3. Nc3 {[%clk 0:02:55]}  dxe4 {[%clk 0:02:55]} 4. Nxe4 {[%clk 0:02:56]}  Nf6 {[%clk 0:02:55]} 5. Nxf6+ {[%clk 0:02:57]}  gxf6 {[%clk 0:02:56]} 6. h4 {[%clk 0:02:45]}  Bf5 {[%clk 0:02:52]} 7. h5 {[%clk 0:02:33]}  e6 {[%clk 0:02:49]} 8. h6 {[%clk 0:02:18]}  Bd6 {[%clk 0:02:46]} 9. Bd3 {[%clk 0:02:09]}  Bg6 {[%clk 0:02:43]} 10. Qe2 {[%clk 0:02:01]}  Nd7 {[%clk 0:02:41]} 11. Bd2 {[%clk 0:01:40]}  Qc7 {[%clk 0:02:40]} 12. O-O-O {[%clk 0:01:17]}  O-O-O {[%clk 0:02:28]} 13. g3 {[%clk 0:01:04]}  c5 {[%clk 0:02:21]} 14. Nf3 {[%clk 0:00:58]}  Nb6 {[%clk 0:02:11]} 15. Bxg6 {[%clk 0:00:34]}  hxg6 {[%clk 0:02:10]} 16. dxc5 {[%clk 0:00:30]}  Qxc5 {[%clk 0:02:06]} 17. Be3 {[%clk 0:00:20]}  Qa5 {[%clk 0:02:01]} 18. Kb1 {[%clk 0:00:18]}  Bc7 {[%clk 0:01:58]} 19. Nd4 {[%clk 0:00:17]}  Nd5 {[%clk 0:01:50]} 20. Nb3 {[%clk 0:00:15]}  Qb4 {[%clk 0:01:45]} 21. Bxa7 {[%clk 0:00:14]}  Be5 {[%clk 0:01:30]} 22. Be3 {[%clk 0:00:13]}  Nc3+ {[%clk 0:01:26]} 23. bxc3 {[%clk 0:00:12]}  Qxc3 {[%clk 0:01:27]} 24. Bd4 {[%clk 0:00:11]}  Rxd4 {[%clk 0:01:24]} 25. Rxd4 {[%clk 0:00:10]}  Bxd4 {[%clk 0:01:24]} 26. Nxd4 {[%clk 0:00:11]}  Qxd4 {[%clk 0:01:25]} 27. Qe3 {[%clk 0:00:11]}  Qxe3 {[%clk 0:01:17]} 28. fxe3 {[%clk 0:00:11]}  Kd7 {[%clk 0:01:18]} 29. c4 {[%clk 0:00:10]}  Ke7 {[%clk 0:01:17]} 30. a4 {[%clk 0:00:07]}  f5 {[%clk 0:01:17]} 31. Kc2 {[%clk 0:00:07]}  Ra8 {[%clk 0:01:14]} 32. h7 {[%clk 0:00:06]}  Rh8 {[%clk 0:01:13]} 33. c5 {[%clk 0:00:06]}  Kf6 {[%clk 0:01:13]} 34. a5 {[%clk 0:00:05]}  Kg7 {[%clk 0:01:14]} 35. c6 {[%clk 0:00:02]}  Rc8 {[%clk 0:01:12]} 36. Kb3 {[%clk 0:00:02]}  Rxc6 {[%clk 0:01:12]} 37. h8=Q# {[%clk 0:00:01]} 1-0


[Site "https://www.chess.com"]

[Event "Titled Tuesday Blitz April 25 Early 2023"]
[White "Sadovsky, Artem"]
[Black "Winkels, Marcel"]
[WhiteFideId "4155840"]
[BlackFideId "1003887"]
[WhiteElo "2314"]
[BlackElo "1900"]
[Result "1-0"]
[Round "01"]
[TimeControl "180+2"]
[Date "2023.04.25"]
[WhiteClock "0:02:01"]
[BlackClock "0:00:13"]

1. Nf3 {[%clk 0:02:55]}  Nf6 {[%clk 0:02:57]} 2. e3 {[%clk 0:02:55]}  g6 {[%clk 0:02:54]} 3. c4 {[%clk 0:02:55]}  Bg7 {[%clk 0:02:54]} 4. b3 {[%clk 0:02:53]}  Ne4 {[%clk 0:02:51]} 5. d4 {[%clk 0:02:53]}  O-O {[%clk 0:02:43]} 6. Bd3 {[%clk 0:02:53]}  Nf6 {[%clk 0:02:27]} 7. O-O {[%clk 0:02:52]}  d5 {[%clk 0:02:22]} 8. cxd5 {[%clk 0:02:52]}  Nxd5 {[%clk 0:02:21]} 9. Bd2 {[%clk 0:02:48]}  c5 {[%clk 0:02:18]} 10. Nc3 {[%clk 0:02:43]}  cxd4 {[%clk 0:02:13]} 11. Nxd4 {[%clk 0:02:42]}  e5 {[%clk 0:01:53]} 12. Nxd5 {[%clk 0:02:29]}  Qxd5 {[%clk 0:01:48]} 13. Bc4 {[%clk 0:02:26]}  Qd8 {[%clk 0:01:43]} 14. Ne2 {[%clk 0:02:20]}  Nc6 {[%clk 0:01:35]} 15. Bc3 {[%clk 0:02:19]}  Bf5 {[%clk 0:01:31]} 16. Ng3 {[%clk 0:02:17]}  Bd7 {[%clk 0:01:24]} 17. Ne4 {[%clk 0:02:11]}  Qc7 {[%clk 0:01:11]} 18. Qd6 {[%clk 0:02:08]}  Qxd6 {[%clk 0:00:45]} 19. Nxd6 {[%clk 0:02:09]}  Rab8 {[%clk 0:00:32]} 20. Rfd1 {[%clk 0:02:06]}  a6 {[%clk 0:00:20]} 21. Nxf7 {[%clk 0:02:03]}  Bg4 {[%clk 0:00:13]} 22. Nxe5+ {[%clk 0:02:01]} 1-0


[Site "https://www.chess.com"]

[Event "Titled Tuesday Blitz April 25 Early 2023"]
[White "Steenbekkers, Franck"]
[Black "Leenhouts, Koen"]
[WhiteFideId "1004220"]
[BlackFideId "1008439"]
[WhiteElo "2106"]
[BlackElo "2409"]
[Result "0-1"]
[Round "01"]
[TimeControl "180+2"]
[Date "2023.04.25"]
[WhiteClock "0:00:47"]
[BlackClock "0:02:11"]

1. e4 {[%clk 0:02:58]}  e5 {[%clk 0:02:57]} 2. Nf3 {[%clk 0:02:54]}  Nc6 {[%clk 0:02:57]} 3. Bb5 {[%clk 0:02:45]}  a6 {[%clk 0:02:57]} 4. Ba4 {[%clk 0:02:45]}  Nf6 {[%clk 0:02:56]} 5. O-O {[%clk 0:02:35]}  Be7 {[%clk 0:02:56]} 6. d3 {[%clk 0:02:31]}  b5 {[%clk 0:02:57]} 7. Bb3 {[%clk 0:02:30]}  O-O {[%clk 0:02:57]} 8. c3 {[%clk 0:02:27]}  d5 {[%clk 0:02:54]} 9. Nbd2 {[%clk 0:02:23]}  h6 {[%clk 0:02:53]} 10. Re1 {[%clk 0:02:21]}  Be6 {[%clk 0:02:50]} 11. exd5 {[%clk 0:02:15]}  Nxd5 {[%clk 0:02:51]} 12. Nxe5 {[%clk 0:02:14]}  Nxe5 {[%clk 0:02:51]} 13. Rxe5 {[%clk 0:02:11]}  c6 {[%clk 0:02:45]} 14. Nf3 {[%clk 0:02:03]}  Bd6 {[%clk 0:02:46]} 15. Re1 {[%clk 0:02:01]}  Bg4 {[%clk 0:02:46]} 16. h3 {[%clk 0:01:57]}  Bh5 {[%clk 0:02:45]} 17. c4 {[%clk 0:01:34]}  Nb4 {[%clk 0:02:38]} 18. Bc2 {[%clk 0:01:16]}  Nxc2 {[%clk 0:02:35]} 19. Qxc2 {[%clk 0:01:15]}  Bxf3 {[%clk 0:02:36]} 20. gxf3 {[%clk 0:01:15]}  Qh4 {[%clk 0:02:35]} 21. Kg2 {[%clk 0:01:14]}  Rfe8 {[%clk 0:02:31]} 22. Bd2 {[%clk 0:01:12]}  Qh5 {[%clk 0:02:16]} 23. Rxe8+ {[%clk 0:01:08]}  Rxe8 {[%clk 0:02:16]} 24. Re1 {[%clk 0:01:09]}  Rxe1 {[%clk 0:02:12]} 25. Bxe1 {[%clk 0:01:05]}  Qe5 {[%clk 0:02:13]} 26. Bc3 {[%clk 0:01:00]}  Qh2+ {[%clk 0:02:12]} 27. Kf1 {[%clk 0:01:00]}  Qxh3+ {[%clk 0:02:13]} 28. Ke2 {[%clk 0:01:00]}  Qe6+ {[%clk 0:02:14]} 29. Kf1 {[%clk 0:00:58]}  bxc4 {[%clk 0:02:13]} 30. dxc4 {[%clk 0:00:58]}  Qxc4+ {[%clk 0:02:13]} 31. Kg2 {[%clk 0:00:52]}  Qxa2 {[%clk 0:02:12]} 32. Qd2 {[%clk 0:00:47]}  Qd5 {[%clk 0:02:11]} 0-1


[Site "https://www.chess.com"]

[Event "Titled Tuesday Blitz April 25 Early 2023"]
[White "Maranhao,Jose Renato Ruiz"]
[Black "MaryanKyrychenko"]
[WhiteFideId "2135175"]
[WhiteElo "1970"]
[BlackElo "2530"]
[Result "0-1"]
[Round "01"]
[TimeControl "180+2"]
[Date "2023.04.25"]
[WhiteClock "0:00:04"]
[BlackClock "0:00:42"]

1. e4 {[%clk 0:03:00]}  c5 {[%clk 0:02:58]} 2. Nf3 {[%clk 0:03:00]}  d6 {[%clk 0:02:59]} 3. d4 {[%clk 0:03:00]}  cxd4 {[%clk 0:03:00]} 4. Nxd4 {[%clk 0:03:00]}  Nf6 {[%clk 0:03:00]} 5. Nc3 {[%clk 0:03:00]}  g6 {[%clk 0:03:01]} 6. Be2 {[%clk 0:02:59]}  Bg7 {[%clk 0:03:01]} 7. O-O {[%clk 0:02:59]}  O-O {[%clk 0:03:02]} 8. Be3 {[%clk 0:02:59]}  Nc6 {[%clk 0:03:02]} 9. Nxc6 {[%clk 0:02:56]}  bxc6 {[%clk 0:03:00]} 10. f4 {[%clk 0:02:51]}  Qa5 {[%clk 0:02:55]} 11. Qd2 {[%clk 0:02:41]}  Rd8 {[%clk 0:02:33]} 12. Rad1 {[%clk 0:02:19]}  Ng4 {[%clk 0:02:06]} 13. Bd4 {[%clk 0:01:55]}  e5 {[%clk 0:02:03]} 14. Bf2 {[%clk 0:01:03]}  Nxf2 {[%clk 0:01:58]} 15. Rxf2 {[%clk 0:01:04]}  exf4 {[%clk 0:01:39]} 16. Bc4 {[%clk 0:00:56]}  Be6 {[%clk 0:01:12]} 17. Bxe6 {[%clk 0:00:49]}  fxe6 {[%clk 0:01:12]} 18. Qxf4 {[%clk 0:00:45]}  Rf8 {[%clk 0:01:08]} 19. Qxd6 {[%clk 0:00:41]}  Qb6 {[%clk 0:01:04]} 20. Qxe6+ {[%clk 0:00:04]}  Kh8 {[%clk 0:01:03]} 21. Rd2 {[%clk 0:00:04]}  Bxc3 {[%clk 0:00:43]} 22. bxc3 {[%clk 0:00:04]}  Qb1+ {[%clk 0:00:42]} 0-1


[Site "https://www.chess.com"]

[Event "Titled Tuesday Blitz April 25 Early 2023"]
[White "Bartel, Michal"]
[Black "Aung Thant Zin"]
[WhiteFideId "1119257"]
[BlackFideId "13000063"]
[WhiteElo "2282"]
[BlackElo "2278"]
[Result "1-0"]
[Round "01"]
[TimeControl "180+2"]
[Date "2023.04.25"]
[WhiteClock "0:01:02"]
[BlackClock "0:00:06"]

1. e4 {[%clk 0:02:59]}  c5 {[%clk 0:02:58]} 2. Ne2 {[%clk 0:02:59]}  Nc6 {[%clk 0:02:57]} 3. g3 {[%clk 0:02:59]}  d6 {[%clk 0:02:56]} 4. Bg2 {[%clk 0:02:59]}  Nf6 {[%clk 0:02:56]} 5. c3 {[%clk 0:02:59]}  e5 {[%clk 0:02:49]} 6. d4 {[%clk 0:02:58]}  Be7 {[%clk 0:02:49]} 7. O-O {[%clk 0:02:58]}  O-O {[%clk 0:02:48]} 8. h3 {[%clk 0:02:57]}  Bd7 {[%clk 0:02:39]} 9. Be3 {[%clk 0:02:53]}  Qc8 {[%clk 0:02:38]} 10. Kh2 {[%clk 0:02:52]}  Re8 {[%clk 0:02:27]} 11. Nd2 {[%clk 0:02:50]}  b6 {[%clk 0:02:05]} 12. a4 {[%clk 0:02:47]}  Qa6 {[%clk 0:02:02]} 13. d5 {[%clk 0:02:36]}  Nd8 {[%clk 0:01:56]} 14. b3 {[%clk 0:02:36]}  Bc8 {[%clk 0:01:44]} 15. f4 {[%clk 0:02:35]}  Nd7 {[%clk 0:01:38]} 16. f5 {[%clk 0:02:34]}  f6 {[%clk 0:01:36]} 17. g4 {[%clk 0:02:34]}  Nf7 {[%clk 0:01:36]} 18. Ng3 {[%clk 0:02:35]}  Nf8 {[%clk 0:01:35]} 19. Rg1 {[%clk 0:02:29]}  Qd3 {[%clk 0:01:30]} 20. Qf3 {[%clk 0:02:20]}  Qxc3 {[%clk 0:01:26]} 21. Nc4 {[%clk 0:02:11]}  Qxb3 {[%clk 0:01:19]} 22. Rgc1 {[%clk 0:02:11]}  Ba6 {[%clk 0:01:10]} 23. Ra3 {[%clk 0:02:01]}  Bxc4 {[%clk 0:00:38]} 24. Rxb3 {[%clk 0:02:01]}  Bxb3 {[%clk 0:00:39]} 25. Ra1 {[%clk 0:01:51]}  Rec8 {[%clk 0:00:35]} 26. h4 {[%clk 0:01:47]}  Bc4 {[%clk 0:00:34]} 27. Bf1 {[%clk 0:01:42]}  Bxf1 {[%clk 0:00:33]} 28. Nxf1 {[%clk 0:01:43]}  a6 {[%clk 0:00:32]} 29. Rb1 {[%clk 0:01:42]}  Rcb8 {[%clk 0:00:32]} 30. Qe2 {[%clk 0:01:41]}  Nd7 {[%clk 0:00:31]} 31. Nd2 {[%clk 0:01:40]}  h6 {[%clk 0:00:30]} 32. Nf3 {[%clk 0:01:27]}  b5 {[%clk 0:00:27]} 33. axb5 {[%clk 0:01:26]}  axb5 {[%clk 0:00:28]} 34. Rxb5 {[%clk 0:01:25]}  Rc8 {[%clk 0:00:28]} 35. Rb7 {[%clk 0:01:23]}  Rd8 {[%clk 0:00:25]} 36. g5 {[%clk 0:01:23]}  fxg5 {[%clk 0:00:25]} 37. hxg5 {[%clk 0:01:23]}  Nxg5 {[%clk 0:00:25]} 38. Nxg5 {[%clk 0:01:23]}  hxg5 {[%clk 0:00:22]} 39. Qg2 {[%clk 0:01:23]}  Bf6 {[%clk 0:00:22]} 40. Bxg5 {[%clk 0:01:22]}  Kf8 {[%clk 0:00:13]} 41. Bxf6 {[%clk 0:01:19]}  gxf6 {[%clk 0:00:14]} 42. Qg6 {[%clk 0:01:18]}  Ra2+ {[%clk 0:00:12]} 43. Kh3 {[%clk 0:01:17]}  Ra3+ {[%clk 0:00:11]} 44. Kh4 {[%clk 0:01:15]}  Ra4 {[%clk 0:00:09]} 45. Qh6+ {[%clk 0:01:11]}  Ke7 {[%clk 0:00:09]} 46. Qh7+ {[%clk 0:01:10]}  Ke8 {[%clk 0:00:10]} 47. Qg8+ {[%clk 0:01:09]}  Ke7 {[%clk 0:00:05]} 48. Qe6+ {[%clk 0:01:09]}  Kf8 {[%clk 0:00:06]} 49. Qxd6+ {[%clk 0:01:07]}  Kg8 {[%clk 0:00:05]} 50. Rxd7 {[%clk 0:01:06]}  Rxe4+ {[%clk 0:00:05]} 51. Kh5 {[%clk 0:01:05]}  Rf8 {[%clk 0:00:06]} 52. Qe7 {[%clk 0:01:02]} 1-0


[Site "https://www.chess.com"]

[Event "Titled Tuesday Blitz April 25 Early 2023"]
[White "Maluco_do_Natal_00"]
[Black "Herman, Daniel"]
[BlackFideId "30935008"]
[WhiteElo "2006"]
[BlackElo "1897"]
[Result "0-1"]
[Round "01"]
[TimeControl "180+2"]
[Date "2023.04.25"]
[WhiteClock "0:00:02"]
[BlackClock "0:00:20"]

1. e4 {[%clk 0:02:50]}  g6 {[%clk 0:03:00]} 2. d4 {[%clk 0:02:48]}  Bg7 {[%clk 0:03:00]} 3. Nf3 {[%clk 0:02:48]}  d6 {[%clk 0:03:00]} 4. c4 {[%clk 0:02:48]}  Nc6 {[%clk 0:02:57]} 5. h3 {[%clk 0:02:45]}  e5 {[%clk 0:02:55]} 6. d5 {[%clk 0:02:45]}  Nd4 {[%clk 0:02:56]} 7. Be3 {[%clk 0:02:41]}  c5 {[%clk 0:02:55]} 8. dxc6 {[%clk 0:02:40]}  Nxc6 {[%clk 0:02:55]} 9. Nc3 {[%clk 0:02:35]}  f5 {[%clk 0:02:46]} 10. Bg5 {[%clk 0:02:18]}  Nf6 {[%clk 0:02:35]} 11. Be2 {[%clk 0:02:14]}  h6 {[%clk 0:02:25]} 12. Bxf6 {[%clk 0:02:11]}  Qxf6 {[%clk 0:02:24]} 13. O-O {[%clk 0:01:59]}  O-O {[%clk 0:02:22]} 14. Qd2 {[%clk 0:01:34]}  Be6 {[%clk 0:01:46]} 15. Qxd6 {[%clk 0:01:23]}  Rfd8 {[%clk 0:01:46]} 16. Qa3 {[%clk 0:01:02]}  Bf8 {[%clk 0:01:41]} 17. Qa4 {[%clk 0:00:50]}  Bc5 {[%clk 0:01:28]} 18. Rad1 {[%clk 0:00:46]}  Nd4 {[%clk 0:01:23]} 19. Nxd4 {[%clk 0:00:28]}  Bxd4 {[%clk 0:01:23]} 20. Nd5 {[%clk 0:00:26]}  Qg5 {[%clk 0:01:16]} 21. Kh1 {[%clk 0:00:09]}  fxe4 {[%clk 0:01:14]} 22. Qc2 {[%clk 0:00:07]}  Rxd5 {[%clk 0:01:08]} 23. cxd5 {[%clk 0:00:07]}  Bxd5 {[%clk 0:01:09]} 24. f3 {[%clk 0:00:07]}  Qe3 {[%clk 0:00:51]} 25. b3 {[%clk 0:00:03]}  Rf8 {[%clk 0:00:43]} 26. Rde1 {[%clk 0:00:03]}  Qg5 {[%clk 0:00:32]} 27. Bc4 {[%clk 0:00:03]}  Bxc4 {[%clk 0:00:27]} 28. Qxc4+ {[%clk 0:00:04]}  Kg7 {[%clk 0:00:28]} 29. fxe4 {[%clk 0:00:03]}  Rxf1+ {[%clk 0:00:22]} 30. Rxf1 {[%clk 0:00:04]}  Qe7 {[%clk 0:00:23]} 31. Qd5 {[%clk 0:00:03]}  h5 {[%clk 0:00:21]} 32. Rd1 {[%clk 0:00:02]}  Be3 {[%clk 0:00:20]} 33. Rf1 {[%clk 0:00:01]}  Bf4 {[%clk 0:00:20]} 34. Qd3 {[%clk 0:00:02]}  Qg5 {[%clk 0:00:20]} 35. Qf3 {[%clk 0:00:01]}  h4 {[%clk 0:00:20]} 36. Qg4 {[%clk 0:00:01]}  Qxg4 {[%clk 0:00:20]} 37. hxg4 {[%clk 0:00:01]}  Kh6 {[%clk 0:00:21]} 38. Kg1 {[%clk 0:00:02]}  Kg5 {[%clk 0:00:21]} 39. Kf2 {[%clk 0:00:02]}  Kxg4 {[%clk 0:00:22]} 40. Rh1 {[%clk 0:00:02]}  Bg3+ {[%clk 0:00:22]} 41. Ke2 {[%clk 0:00:02]}  Kf4 {[%clk 0:00:22]} 42. Kd3 {[%clk 0:00:02]}  g5 {[%clk 0:00:21]} 43. Rf1+ {[%clk 0:00:03]}  Kg4 {[%clk 0:00:20]} 44. Rf7 {[%clk 0:00:03]}  Bf4 {[%clk 0:00:20]} 45. Ke2 {[%clk 0:00:02]}  Kg3 {[%clk 0:00:20]} 46. Kf1 {[%clk 0:00:02]}  g4 {[%clk 0:00:21]} 47. Rxb7 {[%clk 0:00:02]}  Be3 {[%clk 0:00:20]} 0-1


[Site "https://www.chess.com"]

[Event "Titled Tuesday Blitz April 25 Early 2023"]
[White "Semenova, Alina"]
[Black "koncheto"]
[WhiteFideId "24113875"]
[WhiteElo "1833"]
[BlackElo "2524"]
[Result "1/2-1/2"]
[Round "01"]
[TimeControl "180+2"]
[Date "2023.04.25"]
[WhiteClock "0:00:06"]
[BlackClock "0:00:09"]

1. e4 {[%clk 0:02:59]}  c5 {[%clk 0:02:59]} 2. Nf3 {[%clk 0:02:58]}  d6 {[%clk 0:02:59]} 3. d4 {[%clk 0:02:56]}  cxd4 {[%clk 0:02:58]} 4. Nxd4 {[%clk 0:02:57]}  Nf6 {[%clk 0:02:59]} 5. Nc3 {[%clk 0:02:57]}  Nc6 {[%clk 0:02:59]} 6. f3 {[%clk 0:02:50]}  e6 {[%clk 0:02:56]} 7. Be3 {[%clk 0:01:39]}  a6 {[%clk 0:02:55]} 8. Qd2 {[%clk 0:01:36]}  Qc7 {[%clk 0:02:54]} 9. O-O-O {[%clk 0:01:34]}  b5 {[%clk 0:02:51]} 10. g4 {[%clk 0:01:25]}  Bb7 {[%clk 0:02:48]} 11. g5 {[%clk 0:01:17]}  Nd7 {[%clk 0:02:44]} 12. f4 {[%clk 0:01:12]}  Nc5 {[%clk 0:02:20]} 13. Nxc6 {[%clk 0:01:08]}  Bxc6 {[%clk 0:02:19]} 14. Bg2 {[%clk 0:01:06]}  b4 {[%clk 0:02:18]} 15. Ne2 {[%clk 0:00:55]}  Nxe4 {[%clk 0:02:18]} 16. Qxb4 {[%clk 0:00:53]}  Rb8 {[%clk 0:01:54]} 17. Qd4 {[%clk 0:00:49]}  d5 {[%clk 0:01:49]} 18. Bxe4 {[%clk 0:00:42]}  dxe4 {[%clk 0:01:48]} 19. Qe5 {[%clk 0:00:39]}  Qxe5 {[%clk 0:01:19]} 20. fxe5 {[%clk 0:00:39]}  Be7 {[%clk 0:01:20]} 21. Nd4 {[%clk 0:00:36]}  Bd5 {[%clk 0:01:19]} 22. b3 {[%clk 0:00:34]}  O-O {[%clk 0:01:12]} 23. c4 {[%clk 0:00:33]}  Rfc8 {[%clk 0:01:05]} 24. Kd2 {[%clk 0:00:32]}  Ba8 {[%clk 0:00:54]} 25. Ke2 {[%clk 0:00:31]}  a5 {[%clk 0:00:53]} 26. Nb5 {[%clk 0:00:28]}  a4 {[%clk 0:00:50]} 27. Rd7 {[%clk 0:00:25]}  Bf8 {[%clk 0:00:28]} 28. Ba7 {[%clk 0:00:24]}  Rb7 {[%clk 0:00:24]} 29. Rxb7 {[%clk 0:00:23]}  Bxb7 {[%clk 0:00:25]} 30. Rc1 {[%clk 0:00:20]}  Ba6 {[%clk 0:00:22]} 31. bxa4 {[%clk 0:00:17]}  Bc5 {[%clk 0:00:21]} 32. Bxc5 {[%clk 0:00:14]}  Rxc5 {[%clk 0:00:22]} 33. Ke3 {[%clk 0:00:13]}  Rxe5 {[%clk 0:00:22]} 34. Kf4 {[%clk 0:00:10]}  f6 {[%clk 0:00:13]} 35. gxf6 {[%clk 0:00:11]}  gxf6 {[%clk 0:00:14]} 36. c5 {[%clk 0:00:10]}  Kf7 {[%clk 0:00:12]} 37. c6 {[%clk 0:00:08]}  Ke7 {[%clk 0:00:12]} 38. c7 {[%clk 0:00:08]}  Bc8 {[%clk 0:00:12]} 39. Na7 {[%clk 0:00:08]}  Kd7 {[%clk 0:00:12]} 40. Nxc8 {[%clk 0:00:08]}  Kxc8 {[%clk 0:00:12]} 41. Ke3 {[%clk 0:00:06]}  Ra5 {[%clk 0:00:12]} 42. Kxe4 {[%clk 0:00:05]}  Rxa4+ {[%clk 0:00:12]} 43. Kf3 {[%clk 0:00:05]}  Rxa2 {[%clk 0:00:13]} 44. h4 {[%clk 0:00:06]}  Ra7 {[%clk 0:00:11]} 45. Re1 {[%clk 0:00:06]}  e5 {[%clk 0:00:12]} 46. Ke4 {[%clk 0:00:04]}  Rxc7 {[%clk 0:00:12]} 47. Kf5 {[%clk 0:00:05]}  Re7 {[%clk 0:00:09]} 48. Kxf6 {[%clk 0:00:05]}  Ra7 {[%clk 0:00:07]} 49. Rxe5 {[%clk 0:00:04]}  Ra6+ {[%clk 0:00:07]} 50. Kf5 {[%clk 0:00:04]}  Kd7 {[%clk 0:00:07]} 51. Kg5 {[%clk 0:00:05]}  Rd6 {[%clk 0:00:06]} 52. Rf5 {[%clk 0:00:05]}  Ke7 {[%clk 0:00:06]} 53. Re5+ {[%clk 0:00:05]}  Kf7 {[%clk 0:00:06]} 54. h5 {[%clk 0:00:05]}  Kg7 {[%clk 0:00:06]} 55. Re7+ {[%clk 0:00:04]}  Kg8 {[%clk 0:00:07]} 56. Re8+ {[%clk 0:00:05]}  Kf7 {[%clk 0:00:07]} 57. Re5 {[%clk 0:00:05]}  Ra6 {[%clk 0:00:07]} 58. Rf5+ {[%clk 0:00:06]}  Kg7 {[%clk 0:00:07]} 59. Rb5 {[%clk 0:00:05]}  Ra1 {[%clk 0:00:08]} 60. Rb7+ {[%clk 0:00:05]}  Kg8 {[%clk 0:00:07]} 61. Rb8+ {[%clk 0:00:06]}  Kg7 {[%clk 0:00:08]} 62. Rb7+ {[%clk 0:00:06]}  Kg8 {[%clk 0:00:09]} 63. Rb8+ {[%clk 0:00:05]}  Kf7 {[%clk 0:00:09]} 64. Rb7+ {[%clk 0:00:06]}  Kg8 {[%clk 0:00:09]} 1/2-1/2


[Site "https://www.chess.com"]

[Event "Titled Tuesday Blitz April 25 Early 2023"]
[White "Goldin, Alexander"]
[Black "Naroditsky, Daniel"]
[WhiteFideId "2019540"]
[BlackFideId "2026961"]
[WhiteElo "2658"]
[BlackElo "2633"]
[Result "0-1"]
[Round "02"]
[TimeControl "180+2"]
[Date "2023.04.25"]
[WhiteClock "0:00:09"]
[BlackClock "0:00:33"]

1. Nf3 {[%clk 0:03:00]}  Nf6 {[%clk 0:02:56]} 2. d4 {[%clk 0:03:00]}  g6 {[%clk 0:02:53]} 3. g3 {[%clk 0:03:00]}  Bg7 {[%clk 0:02:53]} 4. Bg2 {[%clk 0:03:00]}  O-O {[%clk 0:02:54]} 5. O-O {[%clk 0:03:00]}  d6 {[%clk 0:02:55]} 6. c4 {[%clk 0:03:00]}  Nbd7 {[%clk 0:02:55]} 7. Nc3 {[%clk 0:03:00]}  e5 {[%clk 0:02:54]} 8. e4 {[%clk 0:02:59]}  c6 {[%clk 0:02:54]} 9. h3 {[%clk 0:02:58]}  Qa5 {[%clk 0:02:54]} 10. Re1 {[%clk 0:02:54]}  exd4 {[%clk 0:02:54]} 11. Nxd4 {[%clk 0:02:54]}  Re8 {[%clk 0:02:55]} 12. Rb1 {[%clk 0:02:32]}  Ne5 {[%clk 0:02:53]} 13. Bf1 {[%clk 0:02:25]}  Be6 {[%clk 0:02:47]} 14. Nxe6 {[%clk 0:02:22]}  Rxe6 {[%clk 0:02:48]} 15. Be3 {[%clk 0:02:16]}  Nxe4 {[%clk 0:02:46]} 16. Bd4 {[%clk 0:01:17]}  Nxc3 {[%clk 0:02:19]} 17. Bxc3 {[%clk 0:01:16]}  Qb6 {[%clk 0:02:09]} 18. Kg2 {[%clk 0:01:11]}  Rae8 {[%clk 0:02:06]} 19. Qd2 {[%clk 0:01:11]}  h5 {[%clk 0:01:53]} 20. Rbd1 {[%clk 0:00:56]}  Qc7 {[%clk 0:01:41]} 21. f4 {[%clk 0:00:51]}  Nd7 {[%clk 0:01:39]} 22. Rxe6 {[%clk 0:00:51]}  Rxe6 {[%clk 0:01:38]} 23. Bxg7 {[%clk 0:00:48]}  Kxg7 {[%clk 0:01:39]} 24. f5 {[%clk 0:00:48]}  Rf6 {[%clk 0:01:37]} 25. Qd4 {[%clk 0:00:42]}  gxf5 {[%clk 0:01:30]} 26. Qh4 {[%clk 0:00:37]}  Qb6 {[%clk 0:01:20]} 27. Rd2 {[%clk 0:00:36]}  Qe3 {[%clk 0:01:09]} 28. Re2 {[%clk 0:00:27]}  Qh6 {[%clk 0:01:09]} 29. Qd4 {[%clk 0:00:23]}  f4 {[%clk 0:01:03]} 30. Re7 {[%clk 0:00:23]}  Nc5 {[%clk 0:00:51]} 31. Be2 {[%clk 0:00:21]}  Qg5 {[%clk 0:00:46]} 32. g4 {[%clk 0:00:20]}  Ne6 {[%clk 0:00:39]} 33. Qf2 {[%clk 0:00:17]}  hxg4 {[%clk 0:00:36]} 34. Bxg4 {[%clk 0:00:18]}  f3+ {[%clk 0:00:36]} 35. Kh1 {[%clk 0:00:13]}  Rh6 {[%clk 0:00:33]} 36. Qf1 {[%clk 0:00:09]}  Qxe7 {[%clk 0:00:33]} 0-1


[Site "https://www.chess.com"]